bitfinex-derivatives/quotes_SOLF0:USTF0_20251202
["timestamp","ask_amount","ask_price","bid_price","bid_amount"]
[1764673272056,3.13,128.35,128.28,14.23504387]
[1764673272358,3.13,128.35,128.29,67.26]
[1764673272558,0.05267371,128.33,128.31,0.05084122]
[1764673273564,0.05267371,128.33,128.31,9.51371726]
[1764673273756,0.05267371,128.33,128.31,16.52821726]
[1764673273953,3.13,128.41,128.31,11.07371726]
[1764673274150,3.13,128.41,128.34,9.45079122]
[1764673274555,3.13,128.4,128.34,9.45079122]
[1764673275061,3.18659665,128.38,128.36,0.05840398]
[1764673277154,3.18659665,128.38,128.3,67.22]
[1764673277356,3.13,128.37,128.3,67.22]
[1764673277662,3.13,128.37,128.3,74.235]
[1764673277860,3.13,128.36,128.3,74.235]
[1764673278156,0.04956464,128.34,128.32,0.05150363]
[1764673281361,0.04956464,128.34,128.32,7.06560363]
[1764673283166,0.04956464,128.34,128.32,0.05150363]
[1764673286861,0.04956464,128.34,128.33,7.0136]
[1764673287459,0.04956464,128.34,128.33,74.2136]
[1764673291566,3.17956464,128.34,128.32,0.05150363]
[1764673291861,0.04956464,128.34,128.32,67.23150363]
[1764673292063,0.04956464,128.34,128.32,74.24540363]
[1764673294476,3.38,128.42,128.35,109.0835]
[1764673294672,3.38,128.42,128.36,67.18]
[1764673295269,10.389,128.42,128.36,74.1915]
[1764673295470,3.38,128.39,128.38,0.05620544]
[1764673295673,3.38,128.39,128.37,0.04918159]
[1764673297772,3.38,128.38,128.37,0.04918159]
[1764673298275,0.04929079,128.4,128.37,0.04918159]
[1764673298483,3.42929079,128.4,128.37,0.04918159]
[1764673301188,0.04929079,128.4,128.37,0.04918159]
[1764673301567,3.39929079,128.4,128.37,0.04918159]
[1764673302068,0.04929079,128.4,128.37,0.04918159]
[1764673302379,0.04929079,128.4,128.38,7.0108]
[1764673305382,3.39929079,128.4,128.37,67.20918159]
[1764673306382,3.39929079,128.4,128.37,74.22028159]
[1764673306573,0.04929079,128.4,128.37,74.22028159]
[1764673306771,3.35,128.44,128.37,176.27188159]
[1764673307080,3.35,128.44,128.4,7.0097]
[1764673307278,3.35,128.44,128.41,67.16]
[1764673307979,3.40583203,128.44,128.41,67.21893282]
[1764673308175,3.40583203,128.44,128.41,0.05893282]
[1764673308382,10.41383203,128.44,128.41,0.05893282]
[1764673308687,3.35,128.43,128.41,0.05893282]
[1764673311485,3.35,128.42,128.41,0.05893282]
[1764673316382,3.35,128.39,128.35,9.45079122]
[1764673316689,3.35,128.39,128.33,14.23504387]
[1764673316690,3.35,128.39,128.33,76.59079122]
[1764673317487,0.05727561,128.37,128.35,0.05521727]
[1764673318382,3.40727561,128.37,128.35,0.05521727]
[1764673318884,3.35,128.36,128.35,0.05521727]
[1764673319090,3.35,128.36,128.29,76.59079122]
[1764673319287,3.35,128.35,128.29,9.45079122]
[1764673319583,3.35,128.35,128.24,127.40495504]
[1764673319584,3.35,128.3,128.26,9.45079122]
[1764673319789,3.35,128.3,128.25,9.45079122]
[1764673319988,0.05993048,128.29,128.26,9.48700019]
[1764673320190,0.05993048,128.29,128.27,9.45079122]
[1764673320780,0.05993048,128.29,128.27,16.46769122]
[1764673320987,0.05993048,128.29,128.27,22.81194387]
[1764673321186,0.05993048,128.29,128.28,9.4472701]
[1764673322282,0.05993048,128.29,128.27,22.81194387]
[1764673322477,0.05993048,128.29,128.28,62.0]
[1764673323388,0.05993048,128.29,128.28,76.23504387]
[1764673323795,0.05993048,128.29,128.28,143.39504387]
[1764673323998,0.05993048,128.29,128.28,62.0]
[1764673324290,0.05993048,128.29,128.28,129.16]
[1764673324490,0.05993048,128.29,128.28,143.39504387]
[1764673324790,0.05993048,128.29,128.28,144.95504387]
[1764673326185,0.05993048,128.29,128.28,81.39504387]
[1764673326383,0.05993048,128.29,128.28,76.59162131]
[1764673326588,3.35,128.33,128.3,0.44006952]
[1764673326789,3.35,128.33,128.29,9.43162131]
[1764673327096,3.35,128.33,128.3,9.43162131]
[1764673327594,3.40522579,128.33,128.3,0.05959781]
[1764673328395,10.41912579,128.33,128.3,0.05959781]
[1764673328594,3.28,128.32,128.3,0.05959781]
[1764673329898,3.28,128.32,128.25,14.23504387]
[1764673329899,3.28,128.31,128.25,14.23504387]
[1764673330089,3.28,128.31,128.22,109.1877]
[1764673330090,3.28,128.3,128.23,14.23504387]
[1764673330788,3.28,128.27,128.25,0.03654164]
[1764673331595,3.28,128.25,128.2,14.23504387]
[1764673332304,3.28,128.25,128.19,67.16]
[1764673332305,10.2981,128.25,128.19,14.23504387]
[1764673332500,0.0597176,128.23,128.19,81.41504387]
[1764673332887,3.3397176,128.23,128.2,62.0]
[1764673333092,0.0597176,128.23,128.2,62.0]
[1764673333401,3.3397176,128.23,128.19,88.43604387]
[1764673333895,0.0597176,128.23,128.19,88.43604387]
[1764673334096,0.0597176,128.23,128.19,21.25604387]
[1764673334302,0.0597176,128.23,128.19,74.201]
[1764673334489,3.3397176,128.23,128.18,14.23504387]
[1764673334693,3.3397176,128.23,128.18,67.18]
[1764673336398,3.3397176,128.23,128.18,129.18]
[1764673336902,10.3591176,128.23,128.18,62.0]
[1764673337106,3.28,128.22,128.17,67.18]
[1764673337307,3.28,128.22,128.17,74.202]
[1764673337611,3.28,128.22,128.17,67.18]
[1764673338898,3.28,128.2,128.16,3.35344875]
[1764673339091,3.28,128.2,128.15,93.42]
[1764673339092,0.05004957,128.19,128.17,67.2]
[1764673339910,3.33004957,128.19,128.17,67.2]
[1764673340203,0.05004957,128.19,128.16,129.2]
[1764673340995,3.33004957,128.19,128.14,67.2]
[1764673341909,0.05004957,128.19,128.14,74.2235]
[1764673342403,3.33004957,128.19,128.14,74.2235]
[1764673342613,3.33004957,128.19,128.14,76.22106938]
[1764673343907,3.33004957,128.19,128.14,138.22106938]
[1764673348513,3.33004957,128.19,128.14,136.2235]
[1764673349913,3.33004957,128.19,128.14,74.2235]
[1764673352011,3.33004957,128.19,128.14,67.2]
[1764673352813,3.33004957,128.19,128.15,7.0234]
[1764673353318,7.07154957,128.19,128.14,67.2]
[1764673353915,10.20154957,128.19,128.14,67.2]
[1764673354106,3.18004957,128.19,128.15,7.0234]
[1764673355917,10.20134957,128.19,128.14,67.2]
[1764673356126,3.13,128.18,128.14,67.2]
[1764673356417,10.1519,128.18,128.15,67.22]
[1764673356622,3.13,128.17,128.15,67.22]
[1764673357012,10.1519,128.18,128.15,67.22]
[1764673357915,10.1519,128.18,128.14,136.244]
[1764673358114,10.1525,128.17,128.12,8.38211902]
[1764673358313,0.0564761,128.16,128.13,67.22]
[1764673359828,0.0564761,128.16,128.15,7.0235]
[1764673362632,0.0564761,128.16,128.13,7.0242]
[1764673362838,3.1364761,128.16,128.13,74.2442]
[1764673363336,3.1364761,128.16,128.13,7.0242]
[1764673363531,0.0564761,128.16,128.13,74.2442]
[1764673363838,0.0564761,128.16,128.13,7.0242]
[1764673363839,3.1364761,128.16,128.13,7.0242]
[1764673364032,3.1364761,128.16,128.13,74.2442]
[1764673364229,3.1364761,128.16,128.13,7.0242]
[1764673364428,3.1364761,128.16,128.13,67.22]
[1764673364429,3.08,128.15,128.13,67.22]
[1764673364739,3.08,128.15,128.11,7.0253]
[1764673364936,3.08,128.15,128.11,74.2453]
[1764673365437,3.08,128.13,128.09,7.0266]
[1764673365631,3.12980119,128.12,128.09,74.2466]
[1764673366140,0.04980119,128.12,128.09,74.2466]
[1764673366838,3.12980119,128.12,128.09,74.2466]
[1764673367229,3.08,128.11,128.08,67.24]
[1764673367727,3.08,128.1,128.06,67.24]
[1764673367935,0.05558052,128.09,128.06,67.24]
[1764673368126,3.13558052,128.09,128.06,67.24]
[1764673368836,3.13558052,128.09,128.05,69.0286]
[1764673369031,3.13558052,128.09,128.05,136.2686]
[1764673369228,0.05558052,128.09,128.05,136.2686]
[1764673369427,0.05558052,128.09,128.07,7.0278]
[1764673369628,7.0245,128.14,128.06,112.44562071]
[1764673369943,3.08,128.16,128.07,109.3197]
[1764673370143,3.08,128.19,128.09,3.12232071]
[1764673370441,3.08,128.19,128.1,67.24]
[1764673370643,3.13482535,128.16,128.13,0.05558052]
[1764673370942,3.13482535,128.16,128.13,0.05235978]
[1764673371333,0.05482535,128.16,128.13,0.05235978]
[1764673372539,0.05482535,128.16,128.14,7.0238]
[1764673373734,0.05482535,128.16,128.15,67.24]
[1764673374842,3.08,128.22,128.17,7.0223]
[1764673375740,3.13943819,128.21,128.18,0.05487358]
[1764673375930,3.13943819,128.21,128.18,0.05473705]
[1764673382339,0.05943819,128.21,128.18,0.05473705]
[1764673382738,3.13943819,128.21,128.18,0.05473705]
[1764673385247,3.08,128.19,128.15,7.0233]
[1764673386450,3.13168482,128.18,128.16,0.05566882]
[1764673387942,3.13168482,128.18,128.11,67.22]
[1764673388848,3.13168482,128.18,128.09,235.95346458]
[1764673389150,3.21561684,128.15,128.1,67.22]
[1764673389350,3.21561684,128.15,128.11,7.0256]
[1764673390241,3.21561684,128.15,128.09,77.36892071]
[1764673390549,3.21561684,128.15,128.09,74.2466]
[1764673391436,3.16,128.14,128.09,67.22]
[1764673392038,7.0241,128.14,128.09,74.2467]
[1764673392242,0.05561684,128.15,128.09,67.22]
[1764673393550,0.05561684,128.15,128.09,193.87956458]
[1764673393752,0.05561684,128.15,128.1,109.2944]
[1764673394656,0.05561684,128.15,128.1,109.2969]
[1764673394854,0.05561684,128.15,128.11,81.45504387]
[1764673395455,0.05561684,128.15,128.13,7.0245]
[1764673396357,0.05561684,128.15,128.14,67.22]
[1764673397256,3.16,128.21,128.16,7.0229]
[1764673398251,3.16,128.2,128.14,74.2435]
[1764673398444,3.2141945,128.2,128.17,0.05287466]
[1764673398753,7.0213,128.19,128.17,0.05287466]
[1764673399054,3.16,128.18,128.17,0.05287466]
[1764673404761,10.1813,128.19,128.17,0.05287466]
[1764673405750,3.16,128.18,128.17,0.05287466]
[1764673406059,10.2349945,128.2,128.17,0.05287466]
[1764673406445,3.16,128.19,128.17,0.05287466]
[1764673410459,7.0749945,128.2,128.17,0.05287466]
[1764673410460,3.2141945,128.2,128.17,0.05287466]
[1764673411357,10.2352945,128.2,128.17,0.05287466]
[1764673411666,3.16,128.19,128.17,0.05287466]
[1764673413167,3.16,128.18,128.17,0.05287466]
[1764673420263,10.2113,128.19,128.17,0.05287466]
[1764673420674,3.19,128.18,128.17,0.05287466]
[1764673429188,3.19,128.19,128.17,0.05287466]
[1764673429479,3.19,128.24,128.18,1.99814619]
[1764673429684,3.19,128.27,128.21,14.24075704]
[1764673430179,3.19,128.27,128.22,7.0194]
[1764673430180,3.19,128.26,128.22,7.0194]
[1764673430381,3.19,128.26,128.21,14.24075704]
[1764673430586,3.19,128.24,128.23,0.05919374]
[1764673432288,3.19,128.23,128.2,14.24075704]
[1764673433485,3.19,128.23,128.2,14.29133761]
[1764673435280,3.19,128.23,128.2,21.31193761]
[1764673436084,3.19,128.23,128.2,14.29133761]
[1764673436384,3.19,128.23,128.2,0.05058057]
[1764673436590,3.19,128.21,128.2,0.05058057]
[1764673437081,3.19,128.2,128.16,21.26315704]
[1764673437278,3.19,128.2,128.16,7.0224]
[1764673438083,3.24011122,128.19,128.15,14.24075704]
[1764673438288,3.24011122,128.19,128.15,81.40075704]
[1764673439392,3.24011122,128.19,128.16,7.0229]
[1764673441886,0.05011122,128.19,128.16,7.0229]
[1764673442686,3.24011122,128.19,128.16,7.0229]
[1764673443695,0.05011122,128.19,128.16,14.24075704]
[1764673443895,0.05011122,128.19,128.16,16.23890323]
[1764673444195,0.05011122,128.19,128.17,7.0224]
[1764673444590,0.05011122,128.19,128.17,74.1824]
[1764673445094,3.24011122,128.19,128.17,74.1824]
[1764673445597,0.05011122,128.19,128.17,74.1824]
[1764673446897,0.05011122,128.19,128.17,7.0224]
[1764673447091,0.05011122,128.19,128.17,88.42315704]
[1764673447492,0.05011122,128.19,128.17,7.0224]
[1764673447687,3.24011122,128.19,128.17,7.0224]
[1764673451199,3.24011122,128.19,128.16,81.40075704]
[1764673451994,3.24011122,128.19,128.16,88.42315704]
[1764673452699,3.24011122,128.19,128.16,21.26315704]
[1764673453000,3.24011122,128.19,128.16,88.42315704]
[1764673458505,3.24011122,128.19,128.16,21.26315704]
[1764673458810,3.24011122,128.19,128.16,88.42315704]
[1764673459708,3.24011122,128.19,128.16,88.40315704]
[1764673461610,3.07,128.18,128.15,14.24075704]
[1764673461811,3.07,128.18,128.14,21.26445704]
[1764673462211,3.07,128.17,128.14,21.26445704]
[1764673462809,3.07,128.16,128.13,14.24075704]
[1764673463015,3.12741836,128.16,128.12,14.24075704]
[1764673464313,3.07,128.15,128.12,7.0251]
[1764673464814,3.07,128.15,128.08,111.30864619]
[1764673465021,3.11958448,128.13,128.09,67.14]
[1764673465320,0.04958448,128.13,128.09,67.14]
[1764673465821,0.04958448,128.13,128.11,7.0254]
[1764673466114,0.04958448,128.13,128.12,67.14]
[1764673469121,3.11958448,128.13,128.11,69.0254]
[1764673469324,3.11958448,128.13,128.09,7.0265]
[1764673469514,3.11958448,128.13,128.1,67.16]
[1764673470021,0.04958448,128.13,128.1,67.16]
[1764673471416,0.04958448,128.13,128.11,7.0255]
[1764673471718,0.04958448,128.13,128.1,67.16]
[1764673472223,0.04958448,128.13,128.11,62.0]
[1764673472822,0.04958448,128.13,128.1,67.16]
[1764673473226,0.04958448,128.13,128.12,7.0251]
[1764673474315,3.17,128.2,128.12,110.8392]
[1764673474515,3.17,128.2,128.13,67.16]
[1764673475136,10.1897,128.22,128.14,109.2629]
[1764673475320,0.05644143,128.19,128.17,0.04962151]
[1764673475520,0.05644143,128.19,128.18,67.16]
[1764673476522,0.05644143,128.19,128.17,0.04962151]
[1764673476822,0.05644143,128.19,128.17,67.20962151]
[1764673478330,0.05644143,128.19,128.17,74.23192151]
[1764673480727,0.05644143,128.19,128.17,7.07192151]
[1764673480923,0.05644143,128.19,128.17,74.21192151]
[1764673484625,0.05644143,128.19,128.17,7.07192151]
[1764673484821,3.12644143,128.19,128.17,74.21192151]
[1764673485740,3.12644143,128.19,128.17,0.04962151]
[1764673486633,10.14774143,128.19,128.17,0.04962151]
[1764673486937,3.07,128.18,128.17,0.04962151]
[1764673494040,10.0918,128.18,128.17,0.04962151]
[1764673494628,3.07,128.15,128.11,3.12483996]
[1764673494828,3.07,128.15,128.08,3.12483996]
[1764673495034,3.07,128.15,128.09,67.12]
[1764673495332,7.0241,128.14,128.1,7.0261]
[1764673495534,3.07,128.13,128.1,7.0261]
[1764673495733,0.05212176,128.13,128.1,109.2961]
[1764673495940,0.05212176,128.13,128.11,3.12483996]
[1764673496138,0.05212176,128.13,128.12,7.025]
[1764673497638,0.05212176,128.13,128.12,69.025]
[1764673499545,0.05212176,128.13,128.12,7.025]
[1764673505343,3.07,128.19,128.15,7.0232]
[1764673505538,3.07,128.19,128.15,74.1432]
[1764673506348,0.05170094,128.18,128.16,0.05212176]
[1764673508750,3.40170094,128.18,128.16,0.05212176]
[1764673509351,0.05170094,128.18,128.16,0.05212176]
[1764673511256,3.40170094,128.18,128.16,0.05212176]
[1764673511555,0.05170094,128.18,128.16,0.05212176]
[1764673511756,3.40170094,128.18,128.16,0.05212176]
[1764673511954,0.05170094,128.18,128.16,7.07482176]
[1764673512255,0.05170094,128.18,128.16,0.05212176]
[1764673513352,0.05170094,128.18,128.17,7.0224]
[1764673514258,0.05170094,128.18,128.16,0.05212176]
[1764673514962,0.05170094,128.18,128.17,7.0224]
[1764673515259,3.35,128.23,128.17,62.0]
[1764673515455,3.35,128.23,128.18,67.1]
[1764673515654,3.35,128.23,128.19,7.0207]
[1764673516358,7.0186,128.24,128.19,7.0207]
[1764673516359,3.40867842,128.22,128.2,0.05000674]
[1764673517263,0.05867842,128.22,128.2,7.07050674]
[1764673518355,3.35,128.27,128.21,109.1958]
[1764673518554,3.35,128.29,128.22,179.41963996]
[1764673518956,3.35,128.29,128.25,7.0179]
[1764673519356,0.05356712,128.28,128.26,0.05851572]
[1764673519562,3.40356712,128.28,128.26,0.05851572]
[1764673521347,0.05356712,128.28,128.26,67.13851572]
[1764673521766,0.05356712,128.28,128.27,7.0169]
[1764673521961,3.35,128.33,128.27,109.1476]
[1764673522349,112.17883996,128.39,128.27,109.1476]
[1764673522350,3.35,128.37,128.3,7.0151]
[1764673522559,3.35,128.37,128.31,67.08]
[1764673522765,3.35,128.37,128.3,7.0151]
[1764673523057,3.35,128.34,128.32,0.05074893]
[1764673524264,3.35,128.34,128.32,0.00074893]
[1764673524658,3.35,128.33,128.32,0.00074893]
[1764673526661,3.35,128.31,128.23,109.1812]
[1764673527665,3.40324053,128.28,128.26,0.05980818]
[1764673527861,3.40983946,128.28,128.26,0.05980818]
[1764673531667,3.35,128.27,128.26,0.05980818]
[1764673533271,3.35,128.26,128.21,67.04]
[1764673533666,3.35,128.26,128.21,74.06]
[1764673534161,3.35,128.26,128.21,7.02]
[1764673534363,3.40387057,128.25,128.22,0.05572862]
[1764673544979,10.42197057,128.25,128.22,0.05572862]
[1764673545282,3.3,128.23,128.17,67.04]
[1764673546184,3.3,128.23,128.14,109.258]
[1764673546185,3.35011067,128.21,128.19,0.04978251]
[1764673546372,3.35011067,128.21,128.14,67.04]
[1764673547180,3.3,128.18,128.14,74.0639]
[1764673547381,3.34952716,128.17,128.12,1.9959342]
[1764673547582,3.34952716,128.17,128.12,69.0359342]
[1764673548186,3.34952716,128.17,128.13,62.0]
[1764673548385,3.34952716,128.17,128.14,7.0238]
[1764673549083,3.34952716,128.17,128.13,62.0]
[1764673549278,3.34952716,128.17,128.13,67.04]
[1764673550382,3.3,128.16,128.06,132.7388]
[1764673550586,0.05524044,128.13,128.08,69.0359342]
[1764673550779,0.05524044,128.13,128.08,92.02785713]
[1764673551288,0.05524044,128.13,128.12,1.9959342]
[1764673551490,0.05524044,128.13,128.12,69.0359342]
[1764673551685,3.3,128.19,128.15,7.0233]
[1764673551887,3.3,128.19,128.15,1.9959342]
[1764673552390,3.3,128.19,128.16,62.0]
[1764673552693,3.35519476,128.19,128.16,62.05524044]
[1764673552890,3.35519476,128.19,128.16,69.07804044]
[1764673553092,3.35519476,128.19,128.16,62.05524044]
[1764673556093,3.35519476,128.19,128.16,0.05524044]
[1764673559188,3.3,128.17,128.16,0.05524044]
[1764673560794,3.3,128.15,128.11,1.9959342]
[1764673560996,3.3,128.17,128.11,1.9959342]
[1764673561699,0.05459672,128.15,128.11,1.9959342]
[1764673562496,0.05459672,128.15,128.12,69.0248]
[1764673563293,3.35459672,128.15,128.12,69.0248]
[1764673563593,3.35459672,128.15,128.12,62.0]
[1764673563804,3.35459672,128.15,128.11,1.9959342]
[1764673564193,10.37809672,128.15,128.11,9.0215342]
[1764673565088,3.3,128.14,128.11,7.0256]
[1764673565295,3.3,128.13,128.09,7.0264]
[1764673565502,3.35395481,128.12,128.09,74.0864]
[1764673566790,0.05395481,128.12,128.1,9.0217342]
[1764673567703,0.05395481,128.12,128.1,7.0258]
[1764673569302,0.05395481,128.12,128.1,74.0858]
[1764673573308,3.17395481,128.12,128.1,67.06]
[1764673573505,3.17395481,128.12,128.09,131.0559342]
[1764673573907,7.0241,128.14,128.09,131.0559342]
[1764673574300,7.0241,128.14,128.09,138.0826342]
[1764673574607,7.0241,128.14,128.09,131.0559342]
[1764673574807,0.05222889,128.13,128.1,0.05334059]
[1764673575106,7.07692889,128.13,128.1,0.05334059]
[1764673575605,0.05222889,128.13,128.1,0.05334059]
[1764673575800,3.12,128.11,128.1,0.05334059]
[1764673576199,3.17222889,128.13,128.1,0.05334059]
[1764673577300,0.05222889,128.13,128.1,7.07944059]
[1764673577508,3.17222889,128.13,128.1,0.05334059]
[1764673577906,0.05222889,128.13,128.1,0.05334059]
[1764673578106,0.05222889,128.13,128.1,67.11334059]
[1764673578306,3.17222889,128.13,128.1,0.05334059]
[1764673578509,3.17222889,128.13,128.11,62.0]
[1764673578707,3.17222889,128.13,128.1,67.11334059]
[1764673579894,3.17222889,128.13,128.11,7.0256]
[1764673583902,3.17222889,128.13,128.1,67.11334059]
[1764673584100,3.17222889,128.13,128.1,0.05334059]
[1764673587906,3.12,128.12,128.1,0.05334059]
[1764673588612,10.1451,128.12,128.1,0.05334059]
[1764673588813,3.12,128.11,128.1,0.05334059]
[1764673590613,3.17222889,128.13,128.1,0.05334059]
[1764673591716,3.17222889,128.13,128.1,69.07954059]
[1764673593709,0.05222889,128.13,128.11,7.0254]
[1764673593916,3.17222889,128.13,128.11,7.0254]
[1764673594308,3.17222889,128.13,128.1,7.07954059]
[1764673594515,3.17222889,128.13,128.1,0.05334059]
[1764673597415,3.17222889,128.13,128.1,7.07924059]
[1764673599621,3.17222889,128.13,128.1,0.05334059]
[1764673599913,3.17222889,128.13,128.1,62.05334059]
[1764673600116,0.05222889,128.13,128.11,7.0256]
[1764673600314,0.00222889,128.13,128.12,3.12552232]
[1764673600817,0.00222889,128.13,128.11,25.26115504]
[1764673601324,3.11,128.18,128.14,7.0235]
[1764673601524,3.11,128.18,128.14,74.0635]
[1764673602320,3.16732223,128.17,128.15,0.0538314]
[1764673602522,0.05732223,128.17,128.15,0.0538314]
[1764673602817,0.05732223,128.17,128.15,7.0768314]
[1764673603412,0.05732223,128.17,128.15,69.0768314]
[1764673605022,3.11,128.22,128.18,7.0218]
[1764673605222,10.1285,128.25,128.19,67.04]
[1764673605817,3.11,128.23,128.19,7.021]
[1764673606122,3.1667036,128.22,128.2,0.04977586]
[1764673614013,10.1864036,128.22,128.2,0.04977586]
[1764673614219,3.11,128.21,128.2,0.04977586]
[1764673622325,0.0567036,128.22,128.2,0.04977586]
[1764673622530,334.51013166,128.35,128.2,70.17529818]
[1764673622531,3.11,128.26,128.2,70.17529818]
[1764673622837,3.11,128.29,128.23,109.1849]
[1764673623030,3.11,128.29,128.24,66.98]
[1764673623425,0.0542177,128.28,128.25,0.05681519]
[1764673623632,3.1642177,128.28,128.25,0.05681519]
[1764673624025,0.0542177,128.28,128.25,0.05681519]
[1764673624221,0.0542177,128.28,128.26,7.0173]
[1764673624833,3.1642177,128.28,128.25,0.05681519]
[1764673625637,0.0542177,128.28,128.25,0.05681519]
[1764673626537,3.1642177,128.28,128.25,0.05681519]
[1764673627625,3.1642177,128.28,128.25,62.05681519]
[1764673628536,3.1642177,128.28,128.25,0.05681519]
[1764673630041,3.34,128.27,128.21,66.96]
[1764673630940,3.34,128.24,128.23,0.05700392]
[1764673631338,3.34,128.24,128.16,3.12552232]
[1764673631528,3.34,128.21,128.17,73.9822]
[1764673632038,3.34,128.21,128.16,66.96]
[1764673632542,3.34,128.19,128.17,0.05682212]
[1764673638537,0.05213483,128.2,128.17,0.05682212]
[1764673638538,3.39213483,128.2,128.17,0.05682212]
[1764673640446,10.41303483,128.2,128.17,0.05682212]
[1764673640645,3.34,128.19,128.17,0.05682212]
[1764673641149,10.3617,128.19,128.17,0.05682212]
[1764673641339,3.34,128.18,128.17,0.05682212]
[1764673645536,3.39213483,128.2,128.17,0.05682212]
[1764673646851,3.39213483,128.2,128.17,7.07902212]
[1764673652541,3.39213483,128.2,128.18,7.0218]
[1764673652745,3.31,128.22,128.17,111.2886788]
[1764673652944,3.31,128.25,128.17,125.44049594]
[1764673653143,10.3283,128.25,128.18,7.0214]
[1764673653439,3.31,128.24,128.17,16.20649594]
[1764673653863,0.05287206,128.22,128.19,0.05974822]
[1764673654451,0.05287206,128.22,128.2,7.0207]
[1764673654850,0.05287206,128.22,128.21,7.0202]
[1764673655047,0.05287206,128.22,128.21,9.01805668]
[1764673655855,0.05287206,128.22,128.21,7.0202]
[1764673656052,0.05287206,128.22,128.2,66.96]
[1764673656554,0.05287206,128.22,128.2,73.9806]
[1764673659056,3.17287206,128.22,128.2,7.0206]
[1764673659258,3.17287206,128.22,128.2,73.9806]
[1764673660556,3.17287206,128.22,128.19,0.05974822]
[1764673661757,3.17287206,128.22,128.19,7.08094822]
[1764673664758,3.17287206,128.22,128.19,74.04094822]
[1764673666272,3.17287206,128.22,128.19,0.05974822]
[1764673667964,3.12,128.21,128.19,0.05974822]
[1764673669478,3.12,128.2,128.19,0.05974822]
[1764673673476,3.12,128.19,128.16,14.20863926]
[1764673673777,3.12,128.19,128.15,14.20863926]
[1764673674367,3.12,128.18,128.15,14.20863926]
[1764673674567,3.12,128.18,128.15,0.05627576]
[1764673674568,3.16999396,128.18,128.15,0.05627576]
[1764673675282,3.16999396,128.18,128.15,14.26491502]
[1764673675479,3.12,128.17,128.15,14.26491502]
[1764673675678,3.12,128.17,128.15,0.05627576]
[1764673678079,3.12,128.16,128.15,0.05627576]
[1764673681581,3.16999396,128.18,128.15,0.05627576]
[1764673683388,3.12,128.17,128.15,0.05627576]
[1764673687389,10.1424,128.17,128.15,0.05627576]
[1764673687591,3.12,128.16,128.15,0.05627576]
[1764673688894,3.4,128.15,128.1,14.20863926]
[1764673689393,3.4,128.15,128.09,14.20863926]
[1764673689805,3.4,128.12,128.11,0.04250127]
[1764673696992,10.4251,128.12,128.11,0.04250127]
[1764673699302,3.4,128.1,128.08,62.0]
[1764673699504,3.4,128.1,128.05,1.99785668]
[1764673700307,3.4,128.08,128.05,9.02675668]
[1764673700910,3.45242721,128.09,128.05,9.02635668]
[1764673702505,3.45242721,128.09,128.05,71.02635668]
[1764673703007,3.45242721,128.09,128.05,69.0285]
[1764673703607,3.45242721,128.09,128.05,7.0285]
[1764673706811,3.45242721,128.09,128.05,30.85973435]
[1764673708913,3.45242721,128.09,128.06,7.0284]
[1764673711814,3.45242721,128.09,128.07,7.0278]
[1764673712012,0.05242721,128.09,128.07,1.99785668]
[1764673712415,0.05242721,128.09,128.05,150.50258812]
[1764673715310,0.05242721,128.09,128.08,7.0273]
[1764673715706,3.24242721,128.09,128.07,66.98]
[1764673716417,3.24242721,128.09,128.07,74.0078]
[1764673717707,3.24242721,128.09,128.06,66.98]
[1764673717921,3.19,128.08,128.04,62.0]
[1764673718909,3.19,128.08,128.03,68.3384994]
[1764673719309,3.19,128.07,128.03,66.98]
[1764673719517,3.24877109,128.06,128.02,81.18863926]
[1764673719816,3.24877109,128.06,128.03,7.0295]
[1764673720420,3.24877109,128.06,128.03,21.23813926]
[1764673720624,3.24877109,128.06,128.03,7.0295]
[1764673721619,3.24877109,128.06,128.02,66.98]
[1764673721810,3.24877109,128.06,128.02,128.98]
[1764673724726,3.24877109,128.06,128.02,66.98]
[1764673725927,3.24877109,128.06,128.01,7.0307]
[1764673726520,3.19,128.05,128.01,7.0307]
[1764673728833,3.19,128.04,128.01,7.0307]